fUSD/lending_fUSD_20250309
["ID","MTS","AMOUNT","RATE_DAILY","PERIOD"]
[355718479,1741500641121,-500.0,8.805e-05,2]
[355718480,1741500641130,-609.1,8.805e-05,2]
[355718481,1741500641140,-500.0,8.805e-05,2]
[355718482,1741500641150,-500.0,8.805e-05,2]
[355718483,1741500641159,-560.26515898,8.805e-05,2]
[355718484,1741500641169,-948.27,8.805e-05,2]
[355718485,1741500641179,-500.0,8.805e-05,2]
[355718486,1741500641188,-500.0,8.805e-05,2]
[355718487,1741500641198,-500.0,8.805e-05,2]
[355718488,1741500641207,-435.11838461,8.805e-05,2]
[355718489,1741500641217,-318.93830426,8.805e-05,2]
[355718490,1741500641226,-500.0,8.805e-05,2]
[355718491,1741500641236,-500.0,8.805e-05,2]
[355718492,1741500641245,-589.42544057,8.805e-05,2]
[355718493,1741500641255,-997.44,8.805e-05,2]
[355718494,1741500641265,-510.67373008,8.805e-05,2]
[355718495,1741500641274,-500.0,8.805e-05,2]
[355718496,1741500641283,-500.0,8.805e-05,2]
[355718497,1741500641292,-601.37,8.805e-05,2]
[355718498,1741500641301,-500.0,8.805e-05,2]
[355718499,1741500641311,-500.0,8.805e-05,2]
[355718500,1741500641321,-500.0,8.805e-05,2]
[355718501,1741500641331,-693.01,8.805e-05,2]
[355718502,1741500641341,-500.0,8.805e-05,2]
[355718503,1741500641350,-586.77,8.805e-05,2]
[355718504,1741500641360,-500.0,8.805e-05,2]
[355718505,1741500641369,-500.0,8.805e-05,2]
[355718506,1741500641383,-500.0,8.805e-05,2]
[355718507,1741500641393,-1210.45,8.805e-05,2]
[355718508,1741500641402,-500.0,8.805e-05,2]
[355718509,1741500641411,-500.0,8.805e-05,2]
[355718510,1741500641421,-2639.01,8.805e-05,2]
[355718511,1741500641430,-500.0,8.805e-05,2]
[355718512,1741500641440,-500.0,8.805e-05,2]
[355718513,1741500641450,-500.0,8.805e-05,2]
[355718514,1741500641460,-838.84,8.805e-05,2]
[355718515,1741500641469,-2208.87,8.805e-05,2]
[355718516,1741500641479,-500.0,8.805e-05,2]
[355718517,1741500641489,-500.77024144,8.805e-05,2]
[355718518,1741500641499,-500.0,8.805e-05,2]
[355718519,1741500641508,-500.0,8.805e-05,2]
[355718520,1741500641518,-500.0,8.805e-05,2]
[355718521,1741500641527,-500.0,8.805e-05,2]
[355718522,1741500641537,-1138.82,8.805e-05,2]
[355718523,1741500641546,-502.19637461,8.805e-05,2]
[355718524,1741500641556,-500.0,8.805e-05,2]
[355718525,1741500641565,-500.0,8.805e-05,2]
[355718526,1741500641574,-500.0,8.805e-05,2]
[355718527,1741500641584,-2250.52,8.805e-05,2]
[355718528,1741500641594,-500.0,8.805e-05,2]
[355718529,1741500641603,-500.0,8.805e-05,2]
[355718530,1741500641613,-500.0,8.805e-05,2]
[355718531,1741500641622,-500.0,8.805e-05,2]
[355718532,1741500641631,-500.0,8.805e-05,2]
[355718533,1741500641641,-500.0,8.805e-05,2]
[355718534,1741500641650,-581.79964968,8.805e-05,2]
[355718535,1741500641660,-500.0,8.805e-05,2]
[355718536,1741500641670,-923.85,8.805e-05,2]
[355718537,1741500641680,-500.0,8.805e-05,2]
[355718538,1741500641690,-500.0,8.805e-05,2]
[355718539,1741500641701,-500.0,8.805e-05,2]
[355718540,1741500641711,-845.98,8.805e-05,2]
[355718541,1741500641721,-500.0,8.805e-05,2]
[355718542,1741500641731,-599.72441857,8.805e-05,2]
[355718543,1741500641743,-500.0,8.805e-05,2]
[355718544,1741500641753,-500.0,8.805e-05,2]
[355718545,1741500641763,-500.0,8.805e-05,2]
[355718546,1741500641774,-500.0,8.805e-05,2]
[355718547,1741500641783,-500.0,8.805e-05,2]
[355718548,1741500641793,-500.0,8.805e-05,2]
[355718549,1741500641803,-1191.93,8.805e-05,2]
[355718550,1741500641813,-2267.16,8.805e-05,2]
[355718551,1741500641823,-1813.42,8.805e-05,2]
[355718552,1741500641832,-500.0,8.805e-05,2]
[355718553,1741500641842,-506.55814174,8.805e-05,2]
[355718554,1741500641854,-500.0,8.805e-05,2]
[355718555,1741500641864,-500.0,8.805e-05,2]
[355718556,1741500641875,-500.0,8.805e-05,2]
[355718557,1741500641884,-500.0,8.805e-05,2]
[355718558,1741500641893,-500.0,8.805e-05,2]
[355718559,1741500641903,-500.0,8.805e-05,2]
[355718560,1741500641912,-500.0,8.805e-05,2]
[355718561,1741500641922,-500.0,8.805e-05,2]
[355718562,1741500641931,-675.94,8.805e-05,2]
[355718563,1741500641941,-500.0,8.805e-05,2]
[355718564,1741500641951,-500.0,8.805e-05,2]
[355718565,1741500641960,-500.0,8.805e-05,2]
[355718566,1741500641970,-500.0,8.805e-05,2]
[355718567,1741500641980,-500.0,8.805e-05,2]
[355718568,1741500641990,-500.0,8.805e-05,2]
[355718569,1741500642000,-525.99795256,8.805e-05,2]
[355718570,1741500642010,-500.0,8.805e-05,2]
[355718571,1741500642020,-500.0,8.805e-05,2]
[355718572,1741500642030,-500.0,8.805e-05,2]
[355718573,1741500642039,-370.16267135,8.805e-05,2]
[355718574,1741500642049,-500.0,8.805e-05,2]
[355718575,1741500642059,-500.0,8.805e-05,2]
[355718576,1741500642070,-1239.12,8.805e-05,2]
[355718577,1741500642080,-500.0,8.805e-05,2]
[355718578,1741500642090,-500.0,8.805e-05,2]
[355718579,1741500642101,-532.17158141,8.805e-05,2]
[355718580,1741500642111,-500.0,8.805e-05,2]
[355718581,1741500642121,-603.3868661,8.805e-05,2]
[355718582,1741500642131,-2160.66,8.805e-05,2]
[355718583,1741500642141,-506.0182003,8.805e-05,2]
[355718584,1741500642151,-507.41780014,8.805e-05,2]
[355718585,1741500642161,-500.91962671,8.805e-05,2]
[355718586,1741500642172,-500.0,8.805e-05,2]
[355718587,1741500642183,-919.22,8.805e-05,2]
[355718588,1741500642195,-500.0,8.806e-05,2]
[355718589,1741500642205,-500.0,8.806e-05,2]
[355718590,1741500642215,-500.0,8.806e-05,2]
[355718591,1741500642225,-500.0,8.806e-05,2]
[355718592,1741500642236,-500.0,8.806e-05,2]
[355718593,1741500642246,-540.49,8.806e-05,2]
[355718594,1741500642256,-545.23,8.806e-05,2]
[355718595,1741500642266,-500.0,8.806e-05,2]
[355718596,1741500642277,-500.0,8.806e-05,2]
[355718597,1741500642289,-500.0,8.806e-05,2]
[355718598,1741500642302,-500.0,8.806e-05,2]
[355718599,1741500642312,-500.0,8.806e-05,2]
[355718600,1741500642322,-500.0,8.806e-05,2]
[355718601,1741500642332,-500.0,8.806e-05,2]
[355718602,1741500642342,-500.0,8.806e-05,2]
[355718603,1741500642352,-505.65797339,8.806e-05,2]
[355718604,1741500642362,-500.0,8.806e-05,2]
[355718605,1741500642373,-500.0,8.806e-05,2]
[355718606,1741500642383,-500.0,8.806e-05,2]
[355718607,1741500642392,-500.0,8.806e-05,2]
[355718608,1741500642403,-500.0,8.806e-05,2]
[355718609,1741500642413,-500.0,8.806e-05,2]
[355718610,1741500642424,-500.0,8.806e-05,2]
[355718611,1741500642434,-500.0,8.806e-05,2]
[355718612,1741500642445,-500.0,8.806e-05,2]
[355718613,1741500642456,-500.0,8.806e-05,2]
[355718614,1741500642466,-500.0,8.806e-05,2]
[355718615,1741500642476,-500.0,8.806e-05,2]
[355718616,1741500642487,-500.0,8.806e-05,2]
[355718617,1741500642498,-500.0,8.806e-05,2]
[355718618,1741500642508,-500.0,8.806e-05,2]
[355718619,1741500642519,-500.0,8.806e-05,2]
[355718620,1741500642529,-500.0,8.806e-05,2]
[355718621,1741500642539,-500.0,8.806e-05,2]
[355718622,1741500642549,-500.0,8.806e-05,2]
[355718623,1741500642560,-500.0,8.806e-05,2]
[355718624,1741500642570,-500.0,8.806e-05,2]
[355718625,1741500642580,-500.0,8.806e-05,2]
[355718626,1741500642591,-500.0,8.806e-05,2]
[355718627,1741500642601,-1127.9,8.806e-05,2]
[355718628,1741500642611,-500.0,8.806e-05,2]
[355718629,1741500642621,-500.0,8.806e-05,2]
[355718630,1741500642631,-500.0,8.806e-05,2]
[355718631,1741500642642,-500.0,8.806e-05,2]
[355718632,1741500642652,-500.0,8.806e-05,2]
[355718633,1741500642662,-500.0,8.806e-05,2]
[355718634,1741500642671,-500.0,8.806e-05,2]
[355718635,1741500642681,-500.0,8.806e-05,2]
[355718636,1741500642691,-500.0,8.806e-05,2]
[355718637,1741500642705,-500.0,8.806e-05,2]
[355718638,1741500642715,-500.0,8.806e-05,2]
[355718639,1741500642726,-500.0,8.806e-05,2]
[355718640,1741500642737,-500.0,8.806e-05,2]
[355718641,1741500642749,-500.0,8.806e-05,2]
[355718642,1741500642759,-500.0,8.806e-05,2]
[355718643,1741500642769,-500.0,8.806e-05,2]
[355718644,1741500642781,-500.0,8.806e-05,2]
[355718646,1741500642791,-830.34,8.806e-05,2]
[355718647,1741500642801,-611.25,8.806e-05,2]
[355718648,1741500642812,-680.13,8.806e-05,2]
[355718649,1741500642822,-1358.54,8.806e-05,2]
[355718650,1741500642832,-1000.0,8.806e-05,2]
[355718651,1741500642842,-1702.62,8.806e-05,2]
[355718652,1741500642852,-1415.9,8.806e-05,2]
[355718653,1741500642862,-1143.75,8.806e-05,2]
[355718654,1741500642873,-638.63,8.806e-05,2]
[355718655,1741500642883,-1858.22,8.806e-05,2]
[355718657,1741500642894,-1388.11,8.806e-05,2]
[355718658,1741500642904,-500.0,8.806e-05,2]
[355718660,1741500642915,-279.66736357,8.806e-05,2]
[355718661,1741500642925,-500.0,8.806e-05,2]
[355718662,1741500642935,-500.0,8.806e-05,2]
[355718663,1741500642946,-500.0,8.806e-05,2]
[355718664,1741500642957,-500.0,8.806e-05,2]
[355718665,1741500642967,-500.0,8.806e-05,2]
[355718666,1741500642978,-500.0,8.806e-05,2]
[355718667,1741500642988,-253.5983953,8.806e-05,2]
[355718668,1741500642998,-500.0,8.806e-05,2]
[355718670,1741500643009,-500.0,8.806e-05,2]
[355718673,1741500643019,-500.0,8.806e-05,2]
[355718675,1741500643029,-500.0,8.806e-05,2]
[355718677,1741500643040,-500.0,8.806e-05,2]
[355718679,1741500643050,-400.0,8.806e-05,2]
[355718680,1741500643060,-500.0,8.807e-05,2]
[355718681,1741500643071,-506.69694424,8.807e-05,2]
[355718682,1741500643081,-220.7049222,8.807e-05,2]
[355718683,1741500643091,-508.57899599,8.807e-05,2]
[355718684,1741500643102,-504.84675944,8.807e-05,2]
[355718685,1741500643112,-308.42941146,8.807e-05,2]
[355718686,1741500643122,-506.79866403,8.807e-05,2]
[355718687,1741500643132,-501.62883698,8.807e-05,2]
[355718688,1741500643142,-503.16927744,8.807e-05,2]
[355718689,1741500643153,-500.0,8.807e-05,2]
[355718690,1741500643162,-510.8025144,8.807e-05,2]
[355718691,1741500643172,-511.81864142,8.807e-05,2]
[355718692,1741500643183,-502.57483329,8.807e-05,2]
[355718693,1741500643192,-225.56755034,8.807e-05,2]
[355718694,1741500643202,-504.43757961,8.807e-05,2]
[355718695,1741500643212,-500.41340287,8.807e-05,2]
[355718696,1741500643222,-500.8213724,8.807e-05,2]
[355718697,1741500643232,-501.02596466,8.807e-05,2]
[355718698,1741500643241,-518.37539696,8.807e-05,2]
[355718699,1741500643251,-509.21874869,8.807e-05,2]
[355718700,1741500643262,-500.31777744,8.807e-05,2]
[355718701,1741500643271,-366.83032112,8.807e-05,2]
[355718702,1741500643281,-500.0,8.807e-05,2]
[355718703,1741500643291,-501.9105524,8.807e-05,2]
[355718704,1741500643300,-515.91381915,8.807e-05,2]
[355718705,1741500643310,-340.42342177,8.807e-05,2]
[355718706,1741500643320,-517.33639915,8.807e-05,2]
[355718707,1741500643329,-506.16187764,8.807e-05,2]
[355718708,1741500643339,-505.40115177,8.807e-05,2]
[355718709,1741500643348,-500.78215778,8.807e-05,2]
[355718710,1741500643358,-500.0,8.807e-05,2]
[355718711,1741500643367,-500.0,8.807e-05,2]
[355718712,1741500643378,-500.0,8.807e-05,2]
[355718713,1741500643388,-500.0,8.807e-05,2]
[355718714,1741500643398,-500.0,8.807e-05,2]
[355718715,1741500643409,-500.0,8.807e-05,2]
[355718716,1741500643419,-500.0,8.807e-05,2]
[355718717,1741500643430,-500.0,8.807e-05,2]
[355718718,1741500643440,-500.0,8.807e-05,2]
[355718719,1741500643450,-500.0,8.807e-05,2]
[355718720,1741500643460,-500.0,8.807e-05,2]
[355718721,1741500643470,-500.0,8.807e-05,2]
[355718722,1741500643480,-542.47319918,8.807e-05,2]
[355718723,1741500643490,-500.0,8.807e-05,2]
[355718724,1741500643500,-500.0,8.807e-05,2]
[355718725,1741500643510,-502.03793689,8.807e-05,2]
[355718726,1741500643520,-500.0,8.807e-05,2]
[355718727,1741500643530,-500.0,8.807e-05,2]
[355718728,1741500643539,-500.0,8.807e-05,2]
[355718729,1741500643550,-500.0,8.807e-05,2]
[355718730,1741500643560,-500.0,8.807e-05,2]
[355718732,1741500643570,-511.68326401,8.807e-05,2]
[355718733,1741500643579,-500.0,8.807e-05,2]
[355718734,1741500643590,-500.0,8.807e-05,2]
[355718735,1741500643600,-500.0,8.807e-05,2]
[355718736,1741500643610,-500.0,8.807e-05,2]
[355718737,1741500643621,-500.0,8.807e-05,7]
[355718738,1741500643631,-500.0,8.807e-05,2]
[355718739,1741500643642,-263.85103964,8.807e-05,2]
[355718740,1741500643652,-500.0,8.807e-05,2]
[355718741,1741500643663,-519.83489712,8.807e-05,2]
[355718742,1741500643672,-500.0,8.807e-05,2]
[355718743,1741500643682,-500.0,8.807e-05,2]
[355718744,1741500643694,-500.0,8.807e-05,2]
[355718745,1741500643709,-500.0,8.807e-05,2]
[355718746,1741500643720,-500.0,8.807e-05,2]
[355718747,1741500643731,-500.0,8.807e-05,2]
[355718748,1741500643743,-521.17702783,8.807e-05,2]
[355718749,1741500643754,-529.01861308,8.807e-05,2]
[355718750,1741500643764,-500.0,8.807e-05,2]
[355718751,1741500643776,-518.34190039,8.807e-05,2]
[355718752,1741500643788,-500.0,8.807e-05,2]
[355718753,1741500643799,-500.0,8.807e-05,2]
[355718754,1741500643809,-505.85776149,8.807e-05,2]
[355718755,1741500643821,-500.0,8.807e-05,2]
[355718756,1741500643831,-500.0,8.807e-05,2]
[355718757,1741500643841,-500.0,8.807e-05,2]
[355718758,1741500643851,-500.0,8.807e-05,2]
[355718759,1741500643862,-500.0,8.807e-05,2]
[355718760,1741500643872,-500.0,8.807e-05,2]
[355718761,1741500643883,-341.75531204,8.807e-05,2]
[355718762,1741500643894,-500.0,8.807e-05,2]
[355718763,1741500643905,-500.0,8.807e-05,2]
[355718764,1741500643915,-500.0,8.807e-05,2]
[355718765,1741500643925,-536.59471956,8.807e-05,2]
[355718766,1741500643935,-500.0,8.807e-05,2]
[355718767,1741500643945,-500.0,8.807e-05,2]
[355718768,1741500643956,-503.85626891,8.807e-05,2]
[355718769,1741500643966,-500.0,8.807e-05,2]
[355718770,1741500643976,-500.0,8.807e-05,2]
[355718771,1741500643987,-500.0,8.807e-05,2]
[355718772,1741500643998,-500.0,8.807e-05,2]
[355718773,1741500644008,-507.02530533,8.807e-05,2]
[355718774,1741500644018,-500.0,8.807e-05,2]
[355718775,1741500644029,-500.0,8.807e-05,2]
[355718776,1741500644039,-510.52595497,8.807e-05,2]
[355718777,1741500644049,-512.649527,8.807e-05,2]
[355718778,1741500644061,-500.0,8.807e-05,2]
[355718779,1741500644071,-500.0,8.807e-05,2]
[355718780,1741500644082,-500.0,8.807e-05,2]
[355718781,1741500644092,-500.0,8.807e-05,2]
[355718782,1741500644102,-504.32728843,8.807e-05,2]
[355718783,1741500644113,-500.0,8.807e-05,2]
[355718784,1741500644123,-500.0,8.807e-05,2]
[355718785,1741500644134,-500.0,8.807e-05,2]
[355718786,1741500644144,-500.0,8.807e-05,2]
[355718787,1741500644155,-500.0,8.807e-05,2]
[355718788,1741500644166,-500.0,8.807e-05,2]
[355718789,1741500644177,-500.0,8.807e-05,2]
[355718790,1741500644187,-500.0,8.807e-05,2]
[355718791,1741500644199,-515.37358047,8.807e-05,2]
[355718792,1741500644210,-500.0,8.807e-05,2]
[355718793,1741500644220,-500.0,8.807e-05,2]
[355718794,1741500644230,-526.93229456,8.807e-05,2]
[355718795,1741500644240,-500.0,8.807e-05,2]
[355718796,1741500644250,-500.0,8.807e-05,2]
[355718797,1741500644261,-500.0,8.807e-05,2]
[355718798,1741500644272,-500.0,8.807e-05,2]
[355718799,1741500644282,-500.0,8.807e-05,2]
[355718800,1741500644293,-500.0,8.807e-05,2]
[355718801,1741500644303,-500.0,8.807e-05,2]
[355718802,1741500644314,-500.0,8.807e-05,2]
[355718803,1741500644324,-500.0,8.807e-05,2]
[355718804,1741500644335,-504.88314836,8.807e-05,2]
[355718805,1741500644345,-509.74080461,8.807e-05,2]
[355718806,1741500644355,-500.0,8.807e-05,2]
[355718807,1741500644364,-506.59999489,8.807e-05,2]
[355718808,1741500644375,-502.79723142,8.807e-05,2]
[355718809,1741500644385,-500.0,8.807e-05,2]
[355718810,1741500644396,-507.32932015,8.807e-05,2]
[355718811,1741500644407,-539.97800939,8.807e-05,2]
[355718812,1741500644417,-505.02905599,8.807e-05,2]
[355718813,1741500644428,-504.66752554,8.807e-05,2]
[355718814,1741500644438,-504.68978637,8.807e-05,2]
[355718815,1741500644449,-500.0,8.807e-05,2]
[355718816,1741500644461,-519.84442097,8.807e-05,2]
[355718817,1741500644472,-505.77679685,8.807e-05,2]
[355718818,1741500644662,-500.0,8.807e-05,2]
[355718819,1741500644700,-500.0,8.807e-05,2]
[355718820,1741500644711,-506.00115031,8.807e-05,2]
[355718821,1741500644721,-500.0,8.807e-05,2]
[355718822,1741500644731,-510.16619847,8.807e-05,2]
[355718823,1741500644743,-502.84339183,8.807e-05,2]
[355718824,1741500644753,-504.5277933,8.807e-05,2]
[355718825,1741500644763,-606.8113451,8.807e-05,2]
[355718826,1741500644772,-507.46199596,8.807e-05,2]
[355718827,1741500644785,-505.13566889,8.807e-05,2]
[355718828,1741500644796,-503.43904141,8.807e-05,2]
[355718829,1741500644805,-500.79900961,8.807e-05,2]
[355718830,1741500644815,-500.0,8.807e-05,2]
[355718831,1741500644825,-500.0,8.807e-05,2]
[355718832,1741500644835,-529.6751393,8.807e-05,2]
[355718833,1741500644844,-505.28213154,8.807e-05,2]
[355718834,1741500644854,-500.0,8.807e-05,2]
[355718835,1741500644863,-507.31227456,8.807e-05,2]
[355718836,1741500644873,-500.0,8.807e-05,2]
[355718837,1741500644882,-400.73970689,8.807e-05,2]
[355718838,1741500644891,-497.66731676,8.807e-05,2]
[355718839,1741500644901,-516.09154807,8.807e-05,2]
[355718840,1741500644911,-503.86527065,8.807e-05,2]
[355718841,1741500644920,-500.0,8.807e-05,2]
[355718842,1741500644930,-509.15021905,8.807e-05,2]
[355718843,1741500644939,-505.93159123,8.807e-05,2]
[355718844,1741500644948,-504.4617285,8.807e-05,2]
[355718845,1741500644957,-503.13495531,8.807e-05,2]
[355718846,1741500644966,-505.24170255,8.807e-05,2]
[355718847,1741500644976,-500.0,8.807e-05,2]
[355718848,1741500644986,-515.46834122,8.807e-05,2]
[355718849,1741500644996,-502.36928683,8.807e-05,2]
[355718850,1741500645006,-511.92284376,8.807e-05,2]
[355718851,1741500645015,-500.0,8.807e-05,2]
[355718852,1741500645025,-502.72282012,8.807e-05,2]
[355718853,1741500645036,-500.0,8.807e-05,2]
[355718854,1741500645045,-500.0,8.807e-05,2]
[355718855,1741500645055,-505.16174073,8.807e-05,2]
[355718856,1741500645064,-506.76239874,8.807e-05,2]
[355718857,1741500645074,-500.29397879,8.807e-05,2]
[355718858,1741500645083,-504.09662994,8.807e-05,2]
[355718859,1741500645093,-503.55962841,8.807e-05,2]
[355718860,1741500645103,-509.01984858,8.807e-05,2]
[355718861,1741500645112,-500.0,8.807e-05,2]
[355718862,1741500645121,-511.87922044,8.807e-05,2]
[355718863,1741500645131,-500.0,8.807e-05,2]
[355718864,1741500645141,-505.81427167,8.807e-05,2]
[355718865,1741500645151,-500.0,8.807e-05,2]
[355718866,1741500645161,-506.53358842,8.807e-05,2]
[355718867,1741500645171,-501.32003345,8.807e-05,2]
[355718868,1741500645181,-503.5436919,8.807e-05,2]
[355718869,1741500645191,-510.83016085,8.807e-05,2]
[355718870,1741500645200,-520.91467698,8.807e-05,2]
[355718871,1741500645210,-497.58039974,8.807e-05,2]
[355718872,1741500645220,-500.0,8.807e-05,2]
[355718873,1741500645229,-503.25368297,8.807e-05,2]
[355718874,1741500645239,-504.27715911,8.807e-05,2]
[355718875,1741500645248,-593.41391631,8.807e-05,2]
[355718876,1741500645258,-500.0,8.807e-05,2]
[355718877,1741500645267,-501.4782029,8.807e-05,2]
[355718878,1741500645278,-510.16907912,8.807e-05,2]
[355718879,1741500645287,-504.88680461,8.807e-05,2]
[355718880,1741500645297,-508.2746538,8.807e-05,2]
[355718881,1741500645307,-500.0,8.807e-05,2]
[355718882,1741500645316,-504.08800561,8.807e-05,2]
[355718883,1741500645325,-500.0,8.807e-05,2]
[355718884,1741500645334,-5012.65204669,8.807e-05,2]
[355718885,1741500645343,-500.0,8.807e-05,2]
[355718886,1741500645353,-500.0,8.807e-05,2]
[355718887,1741500645362,-509.00871482,8.807e-05,2]
[355718888,1741500645371,-506.88004087,8.807e-05,2]
[355718889,1741500645380,-514.54151262,8.807e-05,2]
[355718890,1741500645389,-506.00286591,8.807e-05,2]
[355718891,1741500645399,-363.89543985,8.807e-05,2]
[355718892,1741500645408,-511.68389685,8.807e-05,2]
[355718893,1741500645417,-500.0,8.807e-05,2]
[355718894,1741500645426,-502.91280719,8.807e-05,2]
[355718895,1741500645436,-525.69533995,8.807e-05,2]
[355718896,1741500645445,-500.0,8.807e-05,2]
[355718897,1741500645455,-500.0,8.807e-05,2]
[355718898,1741500645464,-502.16542504,8.807e-05,2]
[355718899,1741500645473,-506.06277609,8.807e-05,2]
[355718900,1741500645483,-505.4493158,8.807e-05,2]
[355718901,1741500645493,-505.09792386,8.807e-05,2]
[355718902,1741500645503,-503.02083645,8.807e-05,2]
[355718903,1741500645512,-500.0,8.807e-05,2]
[355718904,1741500645522,-505.70933695,8.807e-05,2]
[355718905,1741500645533,-500.0,8.807e-05,2]
[355718906,1741500645542,-507.93997377,8.807e-05,2]
[355718907,1741500645552,-500.0,8.807e-05,2]
[355718908,1741500645562,-503.8603708,8.807e-05,2]
[355718909,1741500645571,-500.0,8.807e-05,2]
[355718910,1741500645581,-504.45732086,8.807e-05,2]
[355718911,1741500645591,-509.40205028,8.807e-05,2]
[355718912,1741500645601,-501.06526196,8.807e-05,2]
[355718913,1741500645611,-509.12992891,8.807e-05,2]
[355718914,1741500645621,-505.74507238,8.807e-05,2]
[355718915,1741500645630,-511.38668088,8.807e-05,2]
[355718916,1741500645640,-500.0,8.807e-05,2]
[355718917,1741500645650,-150.0,8.816e-05,2]
[355718918,1741500645660,-178.65,8.821e-05,2]
[355718919,1741500645670,-150.0,8.841e-05,2]
[355718920,1741500645679,-178.65,8.848e-05,2]
[355718921,1741500645688,-178.65,8.876e-05,2]
[355718922,1741500645700,-178.65,8.903e-05,2]
[355718923,1741500645712,-178.65,8.93e-05,2]
[355718924,1741500645722,-150.0,8.946e-05,2]
[355718925,1741500645731,-178.65,8.957e-05,2]
[355718926,1741500645741,-178.65,8.984e-05,2]
[355718927,1741500645751,-178.65,9.011e-05,2]
[355718928,1741500645761,-178.65,9.038e-05,2]
[355718930,1741500645771,-178.65,9.065e-05,2]
[355718932,1741500645781,-150.0,9.071e-05,2]
[355718934,1741500645791,-150.0,9.078e-05,2]
[355718935,1741500645801,-1177.82,9.078e-05,2]
[355718936,1741500645811,-755.43,9.078e-05,2]
[355718937,1741500645821,-1966.6,9.078e-05,2]
[355718938,1741500645831,-609.71,9.078e-05,2]
[355718939,1741500645840,-1461.2,9.078e-05,2]
[355718940,1741500645850,-1033.13,9.078e-05,2]
[355718941,1741500645859,-1414.42,9.078e-05,2]
[355718942,1741500645869,-508.68428117,9.078e-05,2]
[355718943,1741500645879,-500.0,9.078e-05,2]
[355718944,1741500645889,-500.0,9.078e-05,2]
[355718945,1741500645899,-500.0,9.078e-05,2]
[355718946,1741500645909,-500.0,9.078e-05,2]
[355718947,1741500645918,-738.41,9.078e-05,2]
[355718948,1741500645929,-2606.72,9.078e-05,2]
[355718949,1741500645938,-2046.07,9.078e-05,2]
[355718950,1741500645948,-1596.63,9.078e-05,2]
[355718951,1741500645958,-500.0,9.078e-05,2]
[355718952,1741500645968,-969.08,9.078e-05,2]
[355718953,1741500645978,-954.1,9.078e-05,2]
[355718954,1741500645988,-6093.42,9.078e-05,2]
[355718955,1741500645999,-528.99,9.078e-05,2]
[355718956,1741500646009,-641.11,9.078e-05,2]
[355718957,1741500646019,-500.0,9.078e-05,2]
[355718958,1741500646029,-500.28,9.078e-05,2]
[355718959,1741500646039,-782.5,9.078e-05,2]
[355718961,1741500646050,-500.0,9.078e-05,2]
[355718962,1741500646060,-547.86423204,9.078e-05,2]
[355718963,1741500646070,-500.0,9.078e-05,2]
[355718964,1741500646079,-4409.66,9.078e-05,2]
[355718965,1741500646089,-500.0,9.078e-05,2]
[355718966,1741500646098,-242.14423997,9.079e-05,2]
[355718967,1741500646108,-500.0,9.079e-05,2]
[355718968,1741500646116,-500.0,9.079e-05,2]
[355718969,1741500646125,-500.0,9.079e-05,2]
[355718970,1741500646134,-500.0,9.079e-05,2]
[355718971,1741500646143,-500.0,9.079e-05,2]
[355718972,1741500646152,-500.0,9.079e-05,2]
[355718973,1741500646161,-115.36802686,9.079e-05,2]
[355718974,1741500646180,-455.41274895,9.079e-05,2]
[355718975,1741500646563,-778.48,8.384e-05,2]
[355718976,1741500646573,-500.0,9.078e-05,2]
[355718977,1741500646582,-130.31922419,9.079e-05,2]
[355718979,1741500646592,-500.0,9.079e-05,2]
[355718980,1741500646602,-396.8901291,9.079e-05,2]
[355718981,1741500646614,-103.1098709,9.079e-05,2]
[355718982,1741500646623,-500.0,9.079e-05,2]
[355718983,1741500646633,-636.14,9.079e-05,2]
[355718985,1741500646644,-500.0,9.079e-05,2]
[355718986,1741500646654,-500.0,9.079e-05,2]
[355718987,1741500646664,-500.0,9.079e-05,2]
[355718988,1741500646673,-500.0,9.079e-05,2]
[355718989,1741500646683,-500.0,9.079e-05,2]
[355718990,1741500646693,-264.16576044,9.079e-05,2]
[355718991,1741500646706,-500.0,9.079e-05,2]
[355718992,1741500646716,-500.0,9.079e-05,2]
[355718993,1741500646726,-500.0,9.079e-05,2]
[355718994,1741500646736,-500.0,9.079e-05,2]